Workbook

Sheet Sheet1
A1: 郑州市教育局直属学校2023年度公开招聘教师笔试成绩公示 （注：成绩缺考为-1，违纪为-2）
A2: 准考证号 | B2: 岗位代码 | C2: 公共基础成绩 | D2: 教育基础成绩 | E2: 笔试总成绩
A3: 23081010101 | B3: 1182 | C3: -1 | D3: -1 | E3: =(C3+D3)/2 -> -1
A4: 23081010102 | B4: 1145 | C4: 46.8 | D4: 24.1 | E4: 35.45
A5: 23081010103 | B5: 1260 | C5: 52.6 | D5: 69 | E5: 60.8
A6: 23081010104 | B6: 1213 | C6: 58.8 | D6: 61.3 | E6: 60.05
A7: 23081010105 | B7: 1213 | C7: 43.4 | D7: 61.4 | E7: 52.4
A8: 23081010106 | B8: 1173 | C8: 12.6 | D8: 27.5 | E8: 20.05
A9: 23081010107 | B9: 1074 | C9: 51.6 | D9: 57.1 | E9: 54.35
A10: 23081010108 | B10: 1192 | C10: 68 | D10: 65.7 | E10: 66.85
A11: 23081010109 | B11: 1043 | C11: -1 | D11: -1 | E11: -1
A12: 23081010110 | B12: 1108 | C12: 50.4 | D12: 35 | E12: 42.7
A13: 23081010111 | B13: 1192 | C13: 72.2 | D13: 66.3 | E13: 69.25
A14: 23081010112 | B14: 1042 | C14: -1 | D14: -1 | E14: -1
A15: 23081010113 | B15: 1088 | C15: 46.8 | D15: 74.9 | E15: 60.85
A16: 23081010114 | B16: 1108 | C16: 64.2 | D16: 71 | E16: 67.6
A17: 23081010115 | B17: 1103 | C17: 79.8 | D17: 83.1 | E17: 81.45
A18: 23081010116 | B18: 1218 | C18: 50.8 | D18: 58 | E18: 54.4
A19: 23081010117 | B19: 1193 | C19: 12.8 | D19: 7.2 | E19: 10
A20: 23081010118 | B20: 1246 | C20: 41 | D20: 53.1 | E20: 47.05
A21: 23081010119 | B21: 1002 | C21: 54.4 | D21: 54.5 | E21: 54.45
A22: 23081010120 | B22: 1169 | C22: 68.6 | D22: 65 | E22: 66.8
A23: 23081010121 | B23: 1255 | C23: 51.8 | D23: 60.9 | E23: 56.35
A24: 23081010122 | B24: 1059 | C24: 31.2 | D24: 45 | E24: 38.1
A25: 23081010123 | B25: 1141 | C25: 55.6 | D25: 75.5 | E25: 65.55
A26: 23081010124 | B26: 1264 | C26: 61 | D26: 73.8 | E26: 67.4
A27: 23081010125 | B27: 1089 | C27: 59 | D27: 66.7 | E27: 62.85
A28: 23081010126 | B28: 1221 | C28: 55.2 | D28: 59.6 | E28: 57.4
A29: 23081010127 | B29: 1189 | C29: 39.6 | D29: 44.1 | E29: 41.85
A30: 23081010128 | B30: 1100 | C30: 46.6 | D30: 64.6 | E30: 55.6
A31: 23081010129 | B31: 1012 | C31: 45.8 | D31: 55.2 | E31: 50.5
A32: 23081010130 | B32: 1248 | C32: 54.4 | D32: 67.9 | E32: 61.15
A33: 23081010201 | B33: 1061 | C33: 40 | D33: 50.1 | E33: 45.05
A34: 23081010202 | B34: 1237 | C34: 54.6 | D34: 53.1 | E34: 53.85
A35: 23081010203 | B35: 1088 | C35: -1 | D35: -1 | E35: -1
A36: 23081010204 | B36: 1079 | C36: 51 | D36: 74.9 | E36: 62.95
A37: 23081010205 | B37: 1257 | C37: 47.4 | D37: 56.2 | E37: 51.8
A38: 23081010206 | B38: 1257 | C38: 51.2 | D38: 57 | E38: 54.1
A39: 23081010207 | B39: 1004 | C39: 57.2 | D39: 71.4 | E39: 64.3
A40: 23081010208 | B40: 1273 | C40: 52 | D40: 50.1 | E40: 51.05
A41: 23081010209 | B41: 1145 | C41: 46.2 | D41: 46.4 | E41: 46.3
A42: 23081010210 | B42: 1196 | C42: 50 | D42: 59.7 | E42: 54.85
A43: 23081010211 | B43: 1130 | C43: 36 | D43: 33.8 | E43: 34.9
A44: 23081010212 | B44: 1107 | C44: 51.8 | D44: 65.2 | E44: 58.5
A45: 23081010213 | B45: 1263 | C45: 40.2 | D45: 54.9 | E45: 47.55
A46: 23081010214 | B46: 1004 | C46: 63.4 | D46: 65.4 | E46: 64.4
A47: 23081010215 | B47: 1036 | C47: 52 | D47: 50.9 | E47: 51.45
A48: 23081010216 | B48: 1231 | C48: 64 | D48: 75.3 | E48: 69.65
A49: 23081010217 | B49: 1176 | C49: 52.6 | D49: 52.9 | E49: 52.75
A50: 23081010218 | B50: 1155 | C50: 71.4 | D50: 67.4 | E50: 69.4
A51: 23081010219 | B51: 1248 | C51: -1 | D51: -1 | E51: -1
A52: 23081010220 | B52: 1063 | C52: 41.4 | D52: 67 | E52: 54.2
A53: 23081010221 | B53: 1210 | C53: 58 | D53: 47.6 | E53: 52.8
A54: 23081010222 | B54: 1156 | C54: -1 | D54: -1 | E54: -1
A55: 23081010223 | B55: 1197 | C55: -1 | D55: -1 | E55: -1
A56: 23081010224 | B56: 1163 | C56: 34.6 | D56: 52.7 | E56: 43.65
A57: 23081010225 | B57: 1068 | C57: 35.2 | D57: 20.9 | E57: 28.05
A58: 23081010226 | B58: 1258 | C58: 44.4 | D58: 72.3 | E58: 58.35
A59: 23081010227 | B59: 1226 | C59: 48.2 | D59: 44.8 | E59: 46.5
A60: 23081010228 | B60: 1256 | C60: 53.6 | D60: 70.7 | E60: 62.15
A61: 23081010229 | B61: 1199 | C61: 36.4 | D61: 34.4 | E61: 35.4
A62: 23081010230 | B62: 1177 | C62: 47.2 | D62: 64 | E62: 55.6
A63: 23081010301 | B63: 1184 | C63: 50 | D63: 66.5 | E63: 58.25
A64: 23081010302 | B64: 1002 | C64: 47 | D64: 60.5 | E64: 53.75
A65: 23081010303 | B65: 1043 | C65: 51.6 | D65: 57.5 | E65: 54.55
A66: 23081010304 | B66: 1198 | C66: -1 | D66: -1 | E66: -1
A67: 23081010305 | B67: 1078 | C67: 59.8 | D67: 53 | E67: =(C67+D67)/2 -> 56.4
A68: 23081010306 | B68: 1213 | C68: 53.4 | D68: 51.3 | E68: 52.35
A69: 23081010307 | B69: 1156 | C69: 46.2 | D69: 79.9 | E69: 63.05
A70: 23081010308 | B70: 1256 | C70: 65.8 | D70: 64.6 | E70: 65.2
A71: 23081010309 | B71: 1025 | C71: 58 | D71: 65.6 | E71: 61.8
A72: 23081010310 | B72: 1236 | C72: -1 | D72: -1 | E72: -1
A73: 23081010311 | B73: 1065 | C73: 56 | D73: 48 | E73: 52
A74: 23081010312 | B74: 1006 | C74: 45.4 | D74: 52.6 | E74: 49
A75: 23081010313 | B75: 1050 | C75: 52.8 | D75: 63.6 | E75: 58.2
A76: 23081010314 | B76: 1194 | C76: 39.8 | D76: 49.4 | E76: 44.6
A77: 23081010315 | B77: 1009 | C77: 54.4 | D77: 65.8 | E77: 60.1
A78: 23081010316 | B78: 1069 | C78: 43.8 | D78: 52.3 | E78: 48.05
A79: 23081010317 | B79: 1258 | C79: 40.8 | D79: 47.4 | E79: 44.1
A80: 23081010318 | B80: 1057 | C80: 61.6 | D80: 60.9 | E80: 61.25
A81: 23081010319 | B81: 1079 | C81: 50.6 | D81: 51.5 | E81: 51.05
A82: 23081010320 | B82: 1049 | C82: -1 | D82: -1 | E82: -1
A83: 23081010321 | B83: 1096 | C83: 55.4 | D83: 69.5 | E83: 62.45
A84: 23081010322 | B84: 1128 | C84: 11.2 | D84: 13.7 | E84: 12.45
A85: 23081010323 | B85: 1079 | C85: -1 | D85: -1 | E85: -1
A86: 23081010324 | B86: 1262 | C86: 37.6 | D86: 46.8 | E86: 42.2
A87: 23081010325 | B87: 1099 | C87: 48 | D87: 52.8 | E87: 50.4
A88: 23081010326 | B88: 1155 | C88: 59.4 | D88: 54 | E88: 56.7
A89: 23081010327 | B89: 1021 | C89: 58 | D89: 79.4 | E89: 68.7
A90: 23081010328 | B90: 1156 | C90: 38.8 | D90: 80.1 | E90: 59.45
A91: 23081010329 | B91: 1046 | C91: 76 | D91: 79 | E91: 77.5
A92: 23081010330 | B92: 1133 | C92: 41.8 | D92: 63.2 | E92: 52.5
A93: 23081010401 | B93: 1248 | C93: 41.6 | D93: 66.6 | E93: 54.1
A94: 23081010402 | B94: 1028 | C94: 43.6 | D94: 65.9 | E94: 54.75
A95: 23081010403 | B95: 1271 | C95: -1 | D95: -1 | E95: -1
A96: 23081010404 | B96: 1261 | C96: 51.8 | D96: 56.4 | E96: 54.1
A97: 23081010405 | B97: 1178 | C97: 41.4 | D97: 60.8 | E97: 51.1
A98: 23081010406 | B98: 1223 | C98: 48 | D98: 45.6 | E98: 46.8
A99: 23081010407 | B99: 1146 | C99: 49.2 | D99: 32.6 | E99: 40.9
A100: 23081010408 | B100: 1053 | C100: 67.6 | D100: 80.5 | E100: 74.05
A101: 23081010409 | B101: 1096 | C101: 57.4 | D101: 55.1 | E101: 56.25
A102: 23081010410 | B102: 1079 | C102: 67 | D102: 75.9 | E102: 71.45
A103: 23081010411 | B103: 1203 | C103: 53.2 | D103: 54.2 | E103: 53.7
A104: 23081010412 | B104: 1141 | C104: 55.6 | D104: 62.7 | E104: 59.15
A105: 23081010413 | B105: 1057 | C105: 44 | D105: 32.2 | E105: 38.1
A106: 23081010414 | B106: 1256 | C106: 61.4 | D106: 59.8 | E106: 60.6
A107: 23081010415 | B107: 1192 | C107: -1 | D107: -1 | E107: -1
A108: 23081010416 | B108: 1076 | C108: 47.2 | D108: 44.2 | E108: 45.7
A109: 23081010417 | B109: 1043 | C109: 54 | D109: 63 | E109: 58.5
A110: 23081010418 | B110: 1107 | C110: 71.2 | D110: 56.6 | E110: 63.9
A111: 23081010419 | B111: 1259 | C111: 57.2 | D111: 67.6 | E111: 62.4
A112: 23081010420 | B112: 1046 | C112: 52.4 | D112: 56.3 | E112: 54.35
A113: 23081010421 | B113: 1260 | C113: 55.8 | D113: 54.1 | E113: 54.95
A114: 23081010422 | B114: 1120 | C114: 67.6 | D114: 83.8 | E114: 75.7
A115: 23081010423 | B115: 1112 | C115: 60 | D115: 67.4 | E115: 63.7
A116: 23081010424 | B116: 1011 | C116: 46 | D116: 54.6 | E116: 50.3
A117: 23081010425 | B117: 1231 | C117: 43.6 | D117: 76.8 | E117: 60.2
A118: 23081010426 | B118: 1163 | C118: 46.4 | D118: 79.9 | E118: 63.15
A119: 23081010427 | B119: 1026 | C119: 39.8 | D119: 49.6 | E119: 44.7
A120: 23081010428 | B120: 1180 | C120: 33.2 | D120: 56.5 | E120: 44.85
A121: 23081010429 | B121: 1044 | C121: 53.6 | D121: 57.2 | E121: 55.4
A122: 23081010430 | B122: 1103 | C122: 48 | D122: 67.6 | E122: 57.8
A123: 23081010501 | B123: 1116 | C123: 38 | D123: 58.9 | E123: 48.45
A124: 23081010502 | B124: 1092 | C124: 48.4 | D124: 66.5 | E124: 57.45
A125: 23081010503 | B125: 1093 | C125: -1 | D125: -1 | E125: -1
A126: 23081010504 | B126: 1201 | C126: 54 | D126: 56.4 | E126: 55.2
A127: 23081010505 | B127: 1012 | C127: 63 | D127: 65 | E127: 64
A128: 23081010506 | B128: 1242 | C128: 40.6 | D128: 44.5 | E128: 42.55
A129: 23081010507 | B129: 1065 | C129: 56.2 | D129: 61.8 | E129: 59
A130: 23081010508 | B130: 1136 | C130: 50.6 | D130: 57.2 | E130: 53.9
A131: 23081010509 | B131: 1192 | C131: 69.4 | D131: 41 | E131: =(C131+D131)/2 -> 55.2
A132: 23081010510 | B132: 1025 | C132: 53 | D132: 50.1 | E132: 51.55
A133: 23081010511 | B133: 1103 | C133: 59.8 | D133: 61.7 | E133: 60.75
A134: 23081010512 | B134: 1236 | C134: -1 | D134: -1 | E134: -1
A135: 23081010513 | B135: 1192 | C135: 51.4 | D135: 64.4 | E135: 57.9
A136: 23081010514 | B136: 1197 | C136: 35.6 | D136: 37.8 | E136: 36.7
A137: 23081010515 | B137: 1042 | C137: 51.4 | D137: 65.8 | E137: 58.6
A138: 23081010516 | B138: 1106 | C138: 56 | D138: 36.7 | E138: 46.35
A139: 23081010517 | B139: 1097 | C139: 59.8 | D139: 63.8 | E139: 61.8
A140: 23081010518 | B140: 1072 | C140: 48.8 | D140: 62.2 | E140: 55.5
A141: 23081010519 | B141: 1152 | C141: 52.6 | D141: 59.6 | E141: 56.1
A142: 23081010520 | B142: 1192 | C142: -1 | D142: -1 | E142: -1
A143: 23081010521 | B143: 1273 | C143: 58 | D143: 76.3 | E143: 67.15
A144: 23081010522 | B144: 1227 | C144: 43.8 | D144: 27.4 | E144: 35.6
A145: 23081010523 | B145: 1218 | C145: 18.4 | D145: 14.4 | E145: 16.4
A146: 23081010524 | B146: 1258 | C146: 60.4 | D146: 64.8 | E146: 62.6
A147: 23081010525 | B147: 1060 | C147: 70.6 | D147: 70.3 | E147: 70.45
A148: 23081010526 | B148: 1106 | C148: 53.8 | D148: 62.8 | E148: 58.3
A149: 23081010527 | B149: 1042 | C149: 61.6 | D149: 61.6 | E149: 61.6
A150: 23081010528 | B150: 1027 | C150: 56 | D150: 75 | E150: 65.5
A151: 23081010529 | B151: 1007 | C151: 60.6 | D151: 62.4 | E151: 61.5
A152: 23081010530 | B152: 1172 | C152: 50.2 | D152: 57.5 | E152: 53.85
A153: 23081010601 | B153: 1194 | C153: 48.2 | D153: 63.4 | E153: 55.8
A154: 23081010602 | B154: 1117 | C154: 68.8 | D154: 73.2 | E154: 71
A155: 23081010603 | B155: 1025 | C155: 51.6 | D155: 55.5 | E155: 53.55
A156: 23081010604 | B156: 1066 | C156: 48.2 | D156: 65 | E156: 56.6
A157: 23081010605 | B157: 1103 | C157: 46 | D157: 76.4 | E157: 61.2
A158: 23081010606 | B158: 1248 | C158: 59.6 | D158: 73.6 | E158: 66.6
A159: 23081010607 | B159: 1067 | C159: 50.2 | D159: 53.6 | E159: 51.9
A160: 23081010608 | B160: 1080 | C160: 58.6 | D160: 61.3 | E160: 59.95
A161: 23081010609 | B161: 1263 | C161: -1 | D161: -1 | E161: -1
A162: 23081010610 | B162: 1225 | C162: -1 | D162: -1 | E162: -1
A163: 23081010611 | B163: 1164 | C163: 33 | D163: 38.7 | E163: 35.85
A164: 23081010612 | B164: 1172 | C164: 56.8 | D164: 76.6 | E164: 66.7
A165: 23081010613 | B165: 1039 | C165: 41.2 | D165: 69.4 | E165: 55.3
A166: 23081010614 | B166: 1044 | C166: 64.6 | D166: 70.8 | E166: 67.7
A167: 23081010615 | B167: 1273 | C167: 65.6 | D167: 72.4 | E167: 69
A168: 23081010616 | B168: 1255 | C168: 49 | D168: 56.6 | E168: 52.8
A169: 23081010617 | B169: 1103 | C169: -1 | D169: -1 | E169: -1
A170: 23081010618 | B170: 1005 | C170: 60.8 | D170: 47.8 | E170: 54.3
A171: 23081010619 | B171: 1260 | C171: 43.6 | D171: 75.3 | E171: 59.45
A172: 23081010620 | B172: 1262 | C172: 43 | D172: 60.7 | E172: 51.85
A173: 23081010621 | B173: 1008 | C173: 58.8 | D173: 64.3 | E173: 61.55
A174: 23081010622 | B174: 1096 | C174: 53.4 | D174: 58.9 | E174: 56.15
A175: 23081010623 | B175: 1012 | C175: 52 | D175: 65.5 | E175: 58.75
A176: 23081010624 | B176: 1115 | C176: 69 | D176: 63.2 | E176: 66.1
A177: 23081010625 | B177: 1241 | C177: 52.6 | D177: 59.2 | E177: 55.9
A178: 23081010626 | B178: 1212 | C178: 40.8 | D178: 67.1 | E178: 53.95
A179: 23081010627 | B179: 1183 | C179: 47.4 | D179: 57.5 | E179: 52.45
A180: 23081010628 | B180: 1192 | C180: 52.6 | D180: 67.9 | E180: 60.25
A181: 23081010629 | B181: 1194 | C181: 47.2 | D181: 38.5 | E181: 42.85
A182: 23081010630 | B182: 1079 | C182: 42.4 | D182: 44.1 | E182: 43.25
A183: 23081010701 | B183: 1152 | C183: 57.2 | D183: 53.9 | E183: 55.55
A184: 23081010702 | B184: 1144 | C184: 43.6 | D184: 54.5 | E184: 49.05
A185: 23081010703 | B185: 1111 | C185: 45.8 | D185: 39.5 | E185: 42.65
A186: 23081010704 | B186: 1025 | C186: 48 | D186: 58.1 | E186: 53.05
A187: 23081010705 | B187: 1101 | C187: 59.6 | D187: 61.1 | E187: 60.35
A188: 23081010706 | B188: 1171 | C188: -1 | D188: -1 | E188: -1
A189: 23081010707 | B189: 1124 | C189: -1 | D189: -1 | E189: -1
A190: 23081010708 | B190: 1237 | C190: -1 | D190: -1 | E190: -1
A191: 23081010709 | B191: 1228 | C191: 43 | D191: 49.5 | E191: 46.25
A192: 23081010710 | B192: 1167 | C192: 12.6 | D192: 16.6 | E192: 14.6
A193: 23081010711 | B193: 1133 | C193: 39 | D193: 54.6 | E193: 46.8
A194: 23081010712 | B194: 1259 | C194: 52.6 | D194: 57.6 | E194: 55.1
A195: 23081010713 | B195: 1146 | C195: 39.2 | D195: 54.2 | E195: =(C195+D195)/2 -> 46.7
A196: 23081010714 | B196: 1070 | C196: -1 | D196: -1 | E196: -1
A197: 23081010715 | B197: 1180 | C197: 53 | D197: 62.3 | E197: 57.65
A198: 23081010716 | B198: 1074 | C198: 44 | D198: 67 | E198: 55.5
A199: 23081010717 | B199: 1248 | C199: 50.4 | D199: 51.6 | E199: 51
A200: 23081010718 | B200: 1242 | C200: 44.4 | D200: 54.9 | E200: 49.65
... 1446 more rows
